bitfinex/quotes_ETHUSD_20260106
["timestamp","ask_amount","ask_price","bid_price","bid_amount"]
[1767660270779,0.001,3202.3,3201.9,1.77548372]
[1767660271482,0.001,3203.5,3202.3,0.9535414]
[1767660271650,10.211,3204.3,3203.2,4.09609097]
[1767660271853,0.69281505,3204.2,3203.3,1.7715414]
[1767660272184,0.001,3204.3,3203.4,0.9535414]
[1767660272678,0.69381505,3204.3,3203.5,0.818]
[1767660272880,0.48125256,3204.2,3203.5,1.7715414]
[1767660273185,0.001,3204.3,3203.5,1.7715414]
[1767660273685,0.69281505,3203.9,3202.9,0.9535414]
[1767660273883,0.71543466,3203.9,3203.0,0.9535414]
[1767660274085,4.78990602,3204.3,3203.2,0.9535414]
[1767660274381,0.69281505,3204.2,3203.2,4.07538429]
[1767660274585,0.001,3204.3,3203.4,0.9535414]
[1767660274753,0.001,3204.3,3203.6,0.9535414]
[1767660275590,0.001,3204.3,3203.7,0.9535414]
[1767660276484,0.001,3204.3,3203.8,0.9535414]
[1767660276989,0.001,3204.3,3204.1,4.07454261]
[1767660277160,0.001,3204.3,3204.1,0.9535414]
[1767660277980,0.816648,3204.8,3204.1,0.9535414]
[1767660279368,0.816648,3204.8,3204.2,0.9535414]
[1767660280002,1.50946305,3204.8,3204.1,0.4892638]
[1767660280317,1.50946305,3204.8,3203.9,1.7715414]
[1767660280668,0.71543466,3204.7,3203.6,0.9535414]
[1767660280876,0.71543466,3204.7,3203.7,0.9535414]
[1767660281200,0.69281505,3204.7,3203.8,0.9535414]
[1767660281714,0.02261961,3204.6,3203.8,0.9535414]
[1767660282487,0.816648,3204.8,3203.9,0.9555414]
[1767660282701,0.001,3204.5,3203.9,0.9555414]
[1767660285409,0.69081505,3203.9,3201.2,0.7995414]
[1767660285612,0.93152652,3202.5,3201.2,3.92197651]
[1767660285783,0.00131228,3201.2,3200.8,3.12415771]
[1767660286102,0.00131228,3201.2,3200.6,4.07794578]
[1767660286103,0.95649424,3202.5,3201.1,0.9535414]
[1767660286321,0.817,3202.4,3201.3,0.9535414]
[1767660286618,0.817,3202.4,3201.5,0.9535414]
[1767660287196,0.95649424,3202.8,3201.5,0.9535414]
[1767660287394,0.817,3202.5,3201.5,0.9535414]
[1767660287716,0.817,3202.5,3201.7,0.9535414]
[1767660287924,3.2085662,3203.3,3201.7,0.9535414]
[1767660287925,0.95649424,3203.2,3201.7,0.9535414]
[1767660288097,1.10351584,3203.1,3201.8,0.9535414]
[1767660288286,0.28551584,3203.0,3201.8,0.9535414]
[1767660289405,1.10351584,3202.9,3201.9,1.90306391]
[1767660289601,0.818,3202.9,3202.0,3.31335448]
[1767660289805,0.818,3202.9,3202.0,6.43640257]
[1767660290636,0.818,3202.9,3202.1,0.9535414]
[1767660290932,0.95649424,3203.5,3202.1,0.9535414]
[1767660291133,0.818,3203.0,3202.3,0.9535414]
[1767660291312,0.818,3203.1,3202.3,0.9535414]
[1767660292012,0.818,3203.1,3202.0,3.31331722]
[1767660292214,1.77449424,3203.1,3202.0,3.31327364]
[1767660292413,2.2641223,3203.1,3202.1,3.12294742]
[1767660292638,1.77449424,3203.1,3202.2,3.12281931]
[1767660293151,1.77449424,3203.1,3202.3,3.12271402]
[1767660293313,1.77449424,3203.1,3202.0,1.14384779]
[1767660293509,1.77449424,3203.1,3202.2,3.12278401]
[1767660294335,0.28623643,3203.0,3202.1,4.07649196]
[1767660294540,1.77449424,3203.1,3202.1,4.81547524]
[1767660294750,0.28623691,3203.0,3202.1,4.81547524]
[1767660295031,0.001,3202.6,3202.1,4.81547524]
[1767660295639,0.001,3202.6,3202.2,0.93309668]
[1767660296437,0.001,3202.6,3202.0,0.19030639]
[1767660296438,0.001,3202.6,3202.0,3.31329614]
[1767660296642,0.001,3202.6,3202.1,0.42463928]
[1767660296843,0.001,3202.6,3202.2,3.12285061]
[1767660297948,0.001,3202.6,3202.2,3.12285303]
[1767660298146,0.001,3202.6,3202.2,6.24570606]
[1767660298455,0.001,3202.6,3202.2,3.12285303]
[1767660298955,0.001,3202.6,3202.1,4.48065999]
[1767660299158,0.001,3202.6,3201.9,3.12306691]
[1767660299461,0.001,3202.6,3202.0,3.12298957]
[1767660299770,0.001,3202.6,3202.1,3.12294349]
[1767660299980,0.95622697,3202.6,3201.7,0.93309668]
[1767660300257,0.819,3202.6,3202.0,3.12297188]
[1767660300436,0.819,3202.6,3202.1,1.24539387]
[1767660300639,0.001,3202.6,3202.1,0.93309668]
[1767660301163,0.001,3202.6,3201.5,0.9644398]
[1767660301164,0.91543827,3202.6,3201.5,0.9644398]
[1767660301777,0.28656625,3202.5,3201.2,0.9644398]
[1767660301977,0.001,3202.6,3201.2,0.9644398]
[1767660301978,0.91443827,3202.3,3201.2,0.9644398]
[1767660302159,0.001,3202.6,3201.0,3.12398337]
[1767660302160,0.91443827,3202.1,3201.0,3.12398337]
[1767660302355,0.17324383,3202.0,3201.0,4.08842317]
[1767660302572,0.17324383,3202.0,3201.0,7.21244691]
[1767660302779,0.91443827,3202.1,3201.0,7.21244691]
[1767660302780,0.818,3201.9,3201.1,0.9644398]
[1767660303280,0.818,3202.2,3201.1,0.9644398]
[1767660304264,0.001,3202.6,3201.1,0.9644398]
[1767660304469,0.28628966,3202.5,3201.3,0.9644398]
[1767660304672,0.818,3202.5,3201.3,0.9644398]
[1767660304859,0.818,3202.5,3201.5,0.9644398]
[1767660305188,0.91443827,3202.4,3201.2,0.9644398]
[1767660305402,0.818,3202.5,3200.6,0.9644398]
[1767660305403,0.91443827,3202.2,3200.6,0.9644398]
[1767660305690,0.91443827,3202.2,3200.8,3.12414714]
[1767660305892,0.91443827,3202.2,3200.9,3.12404733]
[1767660306181,0.91443827,3202.2,3200.9,0.72126958]
[1767660306486,0.91443827,3202.1,3200.9,3.84735543]
[1767660306886,0.818,3202.0,3201.0,0.9644398]
[1767660308186,0.91443827,3201.9,3200.9,0.72326958]
[1767660308385,0.91443827,3201.9,3200.9,0.002]
[1767660308590,0.91443827,3201.7,3200.9,0.002]
[1767660309299,0.818,3201.6,3200.9,0.002]
[1767660309505,1.73243827,3201.6,3200.9,0.002]
[1767660310206,0.91443827,3201.5,3200.9,0.002]
[1767660310507,1.0876821,3201.5,3200.9,0.002]
[1767660310985,0.91443827,3201.8,3200.9,0.002]
[1767660311187,0.818,3201.7,3200.9,0.002]
[1767660311595,1.73243827,3201.7,3200.9,0.002]
[1767660312003,0.91443827,3201.6,3200.9,0.002]
[1767660312907,0.818,3201.5,3200.9,0.002]
[1767660313073,0.91443827,3202.2,3201.0,0.9644398]
[1767660313277,1.10459492,3202.1,3201.0,0.9644398]
[1767660313515,0.28659492,3202.0,3201.0,0.9644398]
[1767660315209,0.28659492,3202.0,3201.2,0.9644398]
[1767660315415,0.91443827,3202.5,3201.2,0.9644398]
[1767660315416,0.818,3202.1,3201.2,0.9644398]
[1767660315709,0.818,3202.2,3201.4,0.9644398]
[1767660315912,0.28737824,3202.1,3201.4,0.9644398]
[1767660316110,0.818,3202.2,3201.4,0.9644398]
[1767660316283,0.3264261,3202.1,3201.3,0.72122921]
[1767660316487,0.85703566,3202.2,3201.3,0.72122921]
[1767660316689,0.28738912,3202.1,3201.3,0.72122921]
[1767660316894,0.818,3202.2,3201.3,1.68566901]
[1767660317195,0.818,3202.2,3201.4,0.1685669]
[1767660317917,0.91543827,3202.6,3201.5,0.9644398]
[1767660318121,0.28738688,3202.5,3201.5,0.9644398]
[1767660318415,0.28738688,3202.4,3201.5,0.9644398]
[1767660318620,0.819,3202.6,3201.5,0.9644398]
[1767660318817,0.28739195,3202.5,3201.7,0.9644398]
[1767660319021,0.28739195,3202.4,3201.7,0.9644398]
[1767660319230,0.001,3202.6,3201.7,0.9644398]
[1767660319436,0.001,3202.6,3201.8,0.9644398]
[1767660319437,0.819,3202.6,3201.8,0.9644398]
[1767660321616,0.819,3202.6,3201.8,4.08767334]
[1767660321921,0.001,3202.6,3202.0,0.9644398]
[1767660322620,13.33161771,3203.5,3202.0,0.9644398]
[1767660322621,0.818,3203.0,3202.0,0.9644398]
[1767660323590,0.818,3203.0,3202.2,0.9644398]
[1767660324620,0.91443827,3203.4,3202.2,0.9644398]
[1767660324835,0.28742724,3203.3,3202.2,0.9644398]
[1767660325145,0.818,3203.4,3202.4,0.9644398]
[1767660325301,0.28739158,3203.3,3202.4,0.9644398]
[1767660325500,0.818,3203.4,3202.4,0.9644398]
[1767660325701,0.28739043,3203.3,3202.5,3.12256049]
[1767660325931,0.818,3203.4,3202.5,3.12256049]
[1767660326152,0.28739099,3203.3,3202.5,4.56780373]
[1767660326302,0.818,3203.4,3202.5,4.56780373]
[1767660326496,0.28735808,3203.3,3202.5,4.56780373]
[1767660326733,0.91443827,3203.7,3202.6,0.9644398]
[1767660326927,1.1443933,3203.6,3202.6,0.9644398]
[1767660327119,0.2873747,3203.5,3202.7,0.9644398]
[1767660327320,0.818,3203.6,3202.7,0.9644398]
[1767660327622,0.28730735,3203.5,3202.7,0.9644398]
[1767660327822,0.91443827,3203.7,3202.8,3.12226801]
[1767660328024,0.28728933,3203.6,3202.8,3.12226801]
[1767660328212,0.28728933,3203.5,3202.8,0.9644398]
[1767660328408,0.0390186,3203.6,3202.8,0.9644398]
[1767660328613,0.2872303,3203.5,3202.8,0.9644398]
[1767660328811,0.91443827,3204.0,3202.9,0.9644398]
[1767660329017,1.10524005,3203.9,3202.9,0.9644398]
[1767660329217,0.91443827,3203.7,3202.8,0.79782843]
[1767660330307,0.91443827,3203.7,3202.9,3.12217053]
[1767660331103,0.91443827,3203.7,3202.8,0.79782843]
[1767660331307,0.001,3203.3,3202.8,3.92009402]
[1767660331609,0.001,3203.3,3203.0,0.99781083]
[1767660332348,0.001,3203.3,3203.1,3.12197558]
[1767660332524,0.99774948,3203.8,3203.1,6.24395116]
[1767660332730,0.99774948,3203.8,3203.1,3.12197558]
[1767660333056,0.99774948,3203.8,3203.1,6.24395116]
[1767660333349,0.99774948,3203.8,3203.2,0.62439512]
[1767660334453,0.99774948,3203.8,3203.3,3.12178066]
[1767660334745,0.99774948,3204.2,3203.3,3.12178066]
[1767660334949,1.03676077,3204.2,3203.2,0.62439512]
[1767660335247,0.99774948,3204.1,3203.2,0.62439512]
[1767660335450,2.15835473,3204.2,3203.0,0.99781083]
[1767660335621,0.99774948,3204.2,3203.2,3.12186667]
[1767660336043,0.99774948,3204.2,3203.2,4.1196775]
[1767660336348,0.99774948,3204.0,3202.9,4.1199719]
[1767660336726,0.03901495,3203.9,3202.9,4.1199719]
[1767660336932,0.818,3203.8,3203.0,0.99781083]
[1767660337531,0.99874948,3204.5,3203.0,0.99781083]
[1767660337750,0.818,3204.2,3203.0,0.99781083]
[1767660338127,0.99874948,3204.5,3203.0,0.99781083]
[1767660338328,0.818,3204.3,3203.0,0.99781083]
[1767660338522,0.818,3204.3,3203.3,0.99781083]
[1767660339254,0.99774948,3204.2,3203.2,6.24375624]
[1767660339678,0.99774948,3204.2,3203.2,3.12187812]
[1767660340380,0.99774948,3204.2,3202.8,0.90471147]
[1767660340381,0.99774948,3204.1,3202.8,3.12219804]
[1767660340584,0.99774948,3203.9,3202.9,0.3122198]
[1767660340782,0.03901616,3203.8,3202.9,0.3122198]
[1767660340956,0.99774948,3203.9,3202.9,0.3122198]
[1767660341357,4.11941518,3204.5,3203.0,0.99781083]
[1767660341557,0.818,3204.2,3203.0,0.99781083]
[1767660342667,0.818,3204.2,3203.2,0.99781083]
[1767660342863,0.818,3204.1,3203.2,0.99781083]
[1767660343284,0.001,3203.9,3203.2,0.99781083]
[1767660344880,0.001,3203.9,3203.1,3.12189508]
[1767660345089,0.001,3203.9,3203.2,3.43405996]
[1767660345490,0.001,3203.9,3203.2,0.31218951]
[1767660346207,0.001,3203.9,3202.9,1.31003063]
[1767660346506,0.001,3203.9,3203.0,0.99781083]
[1767660346698,0.001,3203.9,3203.0,4.11986948]
[1767660347314,0.001,3203.9,3203.1,0.99781083]
[1767660349194,0.001,3203.9,3203.3,0.99781083]
[1767660349386,0.001,3203.9,3203.5,0.99781083]
[1767660350011,0.99874948,3204.5,3203.5,0.99781083]
[1767660350311,0.817,3204.4,3203.5,0.99781083]
[1767660351213,0.001,3204.5,3203.7,0.99781083]
[1767660351417,0.28777892,3204.4,3203.7,0.99781083]
[1767660351598,0.001,3204.5,3203.9,0.99781083]
[1767660353826,0.001,3204.5,3204.0,0.99781083]
[1767660355006,0.91230149,3204.5,3203.8,0.002]
[1767660355210,0.91130149,3204.3,3203.8,0.002]
[1767660355412,0.001,3204.1,3203.8,0.002]
[1767660360135,0.8709188,3204.6,3203.8,0.97843737]
[1767660360345,0.817,3204.4,3203.8,0.97843737]
[1767660360501,0.28800838,3204.3,3203.8,0.97843737]
[1767660360824,0.28800838,3204.2,3203.8,0.97843737]
[1767660361018,0.817,3204.5,3203.8,0.97843737]
[1767660361221,0.28801678,3204.4,3203.8,0.97843737]
[1767660361395,0.28801678,3204.3,3203.8,0.97843737]
[1767660361601,0.28801678,3204.2,3203.8,0.97843737]
[1767660361799,0.9779024,3204.5,3203.8,0.002]
[1767660362026,0.28807181,3204.4,3203.8,0.002]
[1767660362216,0.28807181,3204.3,3203.8,0.002]
[1767660362415,0.28807181,3204.2,3203.8,0.002]
[1767660362620,0.28807181,3204.1,3203.8,0.002]
[1767660362821,1.7949024,3204.5,3203.8,0.002]
[1767660363020,0.28811368,3204.4,3203.8,0.002]
[1767660363202,1.7949024,3204.5,3203.8,0.002]
[1767660363203,0.28811368,3204.3,3203.8,0.002]
[1767660363404,0.28811368,3204.2,3203.8,0.002]
[1767660363604,0.28811368,3204.1,3203.8,0.002]
[1767660363807,1.7949024,3204.5,3203.8,0.002]
[1767660364008,0.28813322,3204.4,3203.8,0.002]
[1767660364227,0.28813322,3204.3,3203.8,0.002]
[1767660364506,0.28813322,3204.2,3203.8,0.002]
[1767660364836,0.28813322,3204.1,3203.8,0.002]
[1767660365034,1.7949024,3204.5,3203.8,0.002]
[1767660365236,0.28819256,3204.4,3203.8,0.002]
[1767660365532,0.28819256,3204.3,3203.8,0.002]
[1767660365711,1.7949024,3204.5,3203.8,0.002]
[1767660365712,0.28819256,3204.2,3203.8,0.002]
[1767660365918,0.28819256,3204.1,3203.8,0.002]
[1767660366121,1.7949024,3204.5,3203.8,0.002]
[1767660366324,0.28819967,3204.4,3203.8,0.002]
[1767660366509,0.28819967,3204.3,3203.8,0.41063877]
[1767660366840,0.28819967,3204.2,3203.8,0.41063877]
[1767660367012,0.28819967,3204.1,3203.8,0.41063877]
[1767660367213,1.7949024,3204.5,3203.8,1.37353866]
[1767660367425,0.28825785,3204.4,3203.8,1.37353866]
[1767660367622,0.28825785,3204.3,3203.8,1.37353866]
[1767660367940,0.816648,3204.8,3203.9,0.96289989]
[1767660368109,0.817,3204.7,3203.9,0.96289989]
[1767660368315,0.817,3204.7,3204.0,4.08399851]
[1767660368513,0.817,3204.7,3204.1,1.37129974]
[1767660368715,0.816648,3204.8,3204.1,1.37129974]
[1767660368716,0.816648,3204.8,3204.2,0.96289989]
[1767660368933,0.001,3205.2,3204.5,0.96289989]
[1767660369422,0.9779024,3205.1,3204.1,0.40839985]
[1767660370330,0.9779024,3205.1,3204.2,3.12090381]
[1767660370519,0.9779024,3205.1,3204.3,0.66503037]
[1767660371123,1.01690396,3205.0,3203.8,0.002]
[1767660371342,0.9779024,3205.0,3203.8,0.002]
[1767660371544,0.9779024,3204.8,3204.0,3.12109176]
[1767660371746,1.01690274,3205.1,3204.0,4.08399165]
[1767660372523,1.01690274,3205.1,3203.8,0.002]
[1767660372524,0.9779024,3205.0,3203.8,0.002]
[1767660372749,0.9779024,3204.8,3203.8,0.002]
[1767660372940,0.9779024,3204.6,3203.8,0.002]
[1767660373119,0.9779024,3204.4,3203.8,0.002]
[1767660374551,4.09862359,3204.4,3203.8,0.002]
[1767660374849,0.9779024,3204.4,3203.8,0.002]
[1767660377152,4.51237582,3204.4,3203.8,0.002]
[1767660377451,0.9779024,3204.3,3203.8,0.002]
[1767660377652,1.7949024,3204.2,3203.8,0.002]
[1767660378721,0.9779024,3204.1,3203.1,0.96089183]
[1767660379137,0.9779024,3204.0,3202.8,0.96289989]
[1767660379353,1.38779482,3203.9,3202.8,1.38009658]
[1767660379929,1.38779482,3203.9,3202.8,0.96289989]
[1767660380341,1.38779482,3203.9,3202.8,4.08515388]
[1767660380918,1.38779482,3203.9,3202.8,0.96289989]
[1767660381122,3.12129346,3203.8,3202.8,0.96289989]
[1767660381322,0.817,3203.7,3202.8,0.96289989]
[1767660381928,1.7949024,3203.7,3202.8,0.96289989]
[1767660382158,1.7949024,3203.7,3202.8,1.37143474]
[1767660384162,1.7949024,3203.7,3202.8,4.49369875]
[1767660384655,0.817,3203.7,3202.9,0.96289989]
[1767660385758,0.817,3203.7,3203.0,0.96289989]
[1767660387342,0.817,3203.8,3203.0,0.96289989]
[1767660387754,0.817,3203.8,3203.1,1.37140572]
[1767660388361,0.9779024,3203.7,3203.1,0.40850583]
[1767660388562,1.01691978,3203.7,3202.8,0.96289989]
[1767660389262,0.9779024,3203.7,3202.8,4.08514834]
[1767660389463,0.9779024,3203.7,3202.9,3.12215172]
[1767660389662,0.9779024,3203.7,3202.9,4.08505161]
[1767660389853,0.9779024,3203.7,3203.0,0.40850516]
[1767660390636,0.9614871,3203.7,3203.0,0.40850516]
[1767660392263,0.0390186,3203.6,3203.1,0.002]
[1767660393039,0.9492289,3203.3,3202.8,0.002]
[1767660393261,0.9492289,3203.3,3202.5,0.002]
[1767660393262,1.7662289,3203.3,3202.5,0.002]
[1767660393474,1.7662289,3203.3,3202.5,1.32237079]
[1767660393851,0.817,3203.3,3202.6,0.91626989]
[1767660394657,0.9492289,3203.0,3202.5,0.002]
[1767660395353,0.9492289,3203.0,3202.2,0.91826989]
[1767660395538,0.9492289,3203.0,3202.2,1.42765768]
[1767660396754,0.9492289,3203.0,3202.2,0.51138779]
[1767660396960,0.9492289,3203.0,3202.2,0.002]
[1767660397273,0.9492289,3202.9,3202.2,0.002]
[1767660397847,0.9492289,3202.7,3202.2,0.002]
[1767660399346,0.9492289,3202.7,3201.4,3.12356483]
[1767660399347,0.9492289,3202.7,3200.9,0.35205523]
[1767660399571,1.03594037,3202.3,3200.9,0.002]
[1767660399770,0.9492289,3202.1,3200.9,0.002]
[1767660401580,0.9492289,3201.9,3200.9,0.002]
[1767660401782,1.7672289,3201.8,3200.9,0.002]
[1767660401954,0.9492289,3201.8,3200.9,0.002]
[1767660402281,1.7672289,3201.7,3200.9,0.002]
[1767660403049,0.9492289,3201.6,3200.9,0.002]
[1767660403782,0.818,3201.5,3200.9,0.002]
[1767660404671,1.7672289,3201.5,3200.9,0.002]
[1767660404981,0.9492289,3201.4,3200.9,0.002]
[1767660405279,0.9492289,3201.4,3200.5,0.91826989]
[1767660405463,0.17672289,3201.7,3200.8,0.91626989]
[1767660405464,1.12595179,3201.7,3200.8,0.91626989]
[1767660405776,0.818,3201.6,3200.5,4.44704011]
[1767660406350,4.07257288,3201.7,3200.5,1.3225641]
[1767660406560,0.818,3201.6,3200.6,0.91626989]
[1767660406756,0.818,3201.6,3200.6,4.04065927]
[1767660406967,0.818,3201.6,3200.7,0.44469535]
[1767660407253,0.818,3201.5,3200.7,0.44469535]
[1767660407584,0.818,3201.5,3200.6,4.04065927]
[1767660407880,0.9492289,3201.5,3200.5,0.40629421]
[1767660408190,1.7672289,3201.4,3200.5,0.002]
[1767660408689,0.818,3201.3,3200.5,0.5798937]
[1767660409172,0.816,3201.3,3200.6,6.82671929]
[1767660409374,0.816,3201.3,3200.6,3.70230512]
[1767660410364,0.816,3201.3,3200.6,0.5778937]
[1767660410568,0.816,3201.3,3200.5,0.002]
[1767660410886,0.816,3201.3,3200.5,3.1265038]
[1767660411089,0.9492289,3201.2,3200.5,0.68490978]
[1767660411258,0.9492289,3201.2,3200.5,0.002]
[1767660411683,1.7672289,3201.2,3200.5,0.002]
[1767660415585,0.9492289,3201.2,3200.5,0.002]
[1767660415764,1.7672289,3201.2,3200.5,0.002]
[1767660415964,1.7672289,3201.2,3200.5,0.62714141]
[1767660416281,1.7652289,3201.2,3200.8,0.002]
[1767660416482,0.818,3201.2,3200.8,0.002]
[1767660419695,0.818,3201.3,3200.8,0.002]
[1767660420990,1.78012507,3201.3,3200.8,0.002]
[1767660421193,0.96212507,3201.6,3200.9,0.5798937]
[1767660421396,0.818,3201.6,3200.9,0.5798937]
[1767660421595,0.818,3201.7,3200.9,0.5798937]
[1767660421964,0.96212507,3201.6,3200.8,0.31464142]
[1767660422359,0.03904419,3201.5,3200.8,0.31464142]
[1767660422595,0.96212507,3201.4,3200.8,0.002]
[1767660423077,0.96212507,3201.2,3200.8,0.002]
[1767660423276,0.96212507,3201.1,3200.5,0.002]
[1767660424502,0.28656124,3201.0,3200.5,0.002]
[1767660424667,0.818,3201.0,3200.5,0.002]
[1767660424867,0.96212507,3201.4,3200.5,0.58830243]
[1767660425086,1.78012507,3201.4,3200.6,1.27005456]
[1767660425286,0.28675522,3201.3,3200.6,1.27005456]
[1767660425478,1.78012507,3201.4,3200.6,1.27005456]
[1767660425783,0.28675526,3201.3,3200.6,1.27005456]
[1767660426003,1.78012507,3201.4,3200.6,1.27005456]
[1767660426203,1.78012507,3201.4,3200.5,0.002]
[1767660426204,0.96212507,3201.2,3200.5,0.002]
[1767660426496,0.818,3201.4,3200.5,0.002]
[1767660426497,0.96212507,3201.0,3200.5,0.002]
[1767660427196,0.28695881,3200.9,3200.5,0.002]
[1767660427498,0.28695881,3200.8,3200.5,0.002]
[1767660427667,0.96212507,3201.0,3200.5,0.002]
[1767660427868,0.28723349,3200.9,3200.8,0.002]
[1767660428083,0.96212507,3201.0,3200.8,0.002]
[1767660428368,0.28747256,3200.9,3200.8,0.002]
[1767660429701,1.24959763,3200.9,3200.8,0.002]
[1767660432810,0.28747256,3200.9,3200.8,0.002]
[1767660433521,0.818,3201.4,3200.8,0.002]
[1767660434222,0.96212507,3201.6,3200.8,0.002]
[1767660434432,0.818,3201.4,3200.8,0.002]
[1767660435721,0.818,3201.4,3200.8,0.3732619]
[1767660437328,0.818,3201.4,3200.8,0.95956433]
[1767660437483,0.96212507,3201.6,3200.9,0.58630243]
[1767660437687,7.37212507,3201.9,3200.9,0.61067303]
[1767660437917,0.818,3201.8,3201.0,1.30953197]
[1767660438318,1.78012507,3201.8,3201.0,1.30953197]
[1767660439119,0.96212507,3201.8,3201.0,1.30953197]
[1767660439322,0.818,3201.9,3201.1,0.58630243]
[1767660439710,0.818,3201.9,3201.2,3.71013099]
[1767660439892,0.818,3201.9,3201.2,4.46586643]
[1767660440436,0.96212507,3201.8,3200.8,0.3732619]
[1767660440587,1.0011656,3201.8,3200.8,3.12616331]
[1767660440799,0.96212507,3201.8,3200.8,3.12616331]
[1767660441002,0.96212507,3201.6,3200.8,0.002]
[1767660441217,0.96212507,3201.4,3200.8,0.002]
[1767660441502,0.96212507,3201.3,3200.8,0.002]
[1767660443025,0.818,3201.4,3200.8,0.002]
[1767660443231,0.96212507,3201.6,3200.8,0.002]
[1767660443428,0.818,3201.5,3200.8,0.002]
[1767660443730,1.78012507,3201.5,3200.8,3.12621894]
[1767660444632,1.00117048,3201.4,3200.8,0.002]
[1767660444836,0.96212507,3201.4,3200.8,0.002]
[1767660445403,0.818,3201.3,3200.8,0.002]
[1767660445603,0.96212507,3201.2,3200.8,0.002]
[1767660445837,1.14013758,3201.1,3200.8,0.002]
[1767660446008,1.14013758,3201.1,3200.5,0.002]
[1767660446410,0.96212507,3201.0,3200.5,0.002]
[1767660451630,0.96212507,3201.0,3200.8,0.002]
[1767660451831,0.96212507,3201.0,3200.5,0.002]
[1767660452141,0.99863615,3201.0,3200.5,0.002]
[1767660452443,0.90145533,3200.8,3200.5,0.002]
[1767660452632,0.90145533,3200.6,3200.5,0.002]
[1767660453545,0.90145533,3200.6,3200.0,0.002]
[1767660453716,0.90145533,3200.6,3199.6,3.1253318]
[1767660453916,0.90145533,3200.4,3199.6,3.12532049]
[1767660454214,0.90145533,3200.4,3199.7,3.12528895]
[1767660454553,0.90145533,3200.8,3199.9,0.58884164]
[1767660454721,0.818,3200.8,3199.9,0.58884164]
[1767660455111,0.818,3200.8,3199.8,6.25038169]
[1767660455112,0.818,3200.8,3200.1,6.83864632]
[1767660455312,6.41,3201.0,3200.1,6.24980468]
[1767660455551,0.818,3201.4,3200.3,0.58884164]
[1767660456941,0.001,3201.5,3200.3,0.58884164]
[1767660457116,0.001,3201.5,3200.5,0.58884164]
[1767660457314,0.001,3201.5,3200.7,0.58884164]
[1767660457530,6.41,3202.2,3200.6,0.99626699]
[1767660457531,0.90145533,3201.8,3200.6,0.99626699]
[1767660457735,0.94049586,3201.8,3200.6,0.99626699]
[1767660457932,0.90145533,3201.8,3200.6,0.99626699]
[1767660458321,0.90145533,3201.8,3200.6,1.58510863]
[1767660458526,0.90145533,3201.8,3200.7,0.15851086]
[1767660458848,0.90145533,3201.8,3200.7,0.17683311]
[1767660459147,0.90145533,3202.6,3200.9,0.93321454]
[1767660459314,0.818,3202.5,3200.9,0.93321454]
[1767660459642,0.90145533,3202.4,3200.9,0.93321454]
[1767660459824,0.90145533,3202.4,3201.0,2.27622357]
[1767660460628,0.90145533,3202.3,3201.1,0.93321454]
[1767660461231,0.90145533,3202.3,3201.2,9.37148568]
[1767660462937,0.90145533,3202.3,3201.2,10.30470022]
[1767660463242,0.818,3202.4,3201.5,0.93321454]
[1767660463451,0.818,3202.4,3201.6,0.71804814]
[1767660463950,0.818,3202.4,3201.6,1.65126268]
[1767660464534,0.001,3202.1,3201.6,1.65126268]
[1767660465056,0.90145533,3202.6,3201.6,0.71804814]
[1767660465057,0.90145533,3202.5,3201.6,0.71804814]
[1767660465236,0.90145533,3202.5,3201.7,6.24668144]
[1767660465559,0.90145533,3202.5,3201.8,0.69647296]
[1767660465934,0.818,3202.6,3201.8,0.69647296]
[1767660466467,0.818,3202.6,3201.7,6.24668144]
[1767660466468,0.90145533,3202.5,3201.7,6.24668144]
[1767660467230,0.90145533,3202.5,3201.5,6.24707168]
[1767660467431,0.90145533,3202.5,3201.5,7.18028622]
[1767660467638,0.03903322,3202.4,3201.6,0.93321454]
[1767660467954,0.818,3202.4,3201.6,0.93321454]
[1767660468126,0.818,3202.4,3201.7,0.71802862]
[1767660470555,0.03903444,3202.3,3201.7,3.12331497]
[1767660470771,1.71945533,3202.4,3201.7,3.12331497]
[1767660470931,1.71945533,3202.4,3201.7,6.24665569]
[1767660471125,0.818,3202.4,3201.7,7.17987023]
[1767660471358,0.818,3202.4,3201.8,0.71798702]
[1767660472424,0.818,3202.4,3201.8,3.84120226]
[1767660473161,0.85703322,3202.4,3201.8,3.84120226]
[1767660473659,1.75848855,3202.4,3201.4,0.93321454]
[1767660473827,0.90145533,3202.3,3201.4,0.93321454]
[1767660474027,0.90145533,3202.2,3201.7,3.12327127]
[1767660474245,0.90145533,3202.2,3201.8,3.12323958]
[1767660474476,1.75328779,3202.4,3201.5,4.06196198]
[1767660474639,1.75328779,3202.4,3201.6,0.4061962]
[1767660475041,0.97432223,3202.3,3201.6,0.4061962]
[1767660476860,0.97432223,3202.3,3201.8,0.002]
[1767660477032,0.001,3202.1,3201.8,0.002]
[1767660477386,0.001,3202.1,3200.8,3.12418553]
[1767660477387,0.93528779,3201.8,3200.8,3.12418553]
[1767660477548,0.818,3201.7,3201.0,3.12400527]
[1767660478079,0.818,3201.7,3201.0,3.12399145]
[1767660478432,1.75328779,3201.7,3201.1,3.1239261]
[1767660478864,1.75328779,3201.7,3200.9,6.24824268]
[1767660479032,0.001,3202.1,3201.2,0.93842614]
[1767660479239,0.818,3202.0,3201.4,0.93842614]
[1767660480765,1.75328779,3202.0,3201.0,0.93842614]
[1767660480932,1.75328779,3202.0,3201.2,0.97713031]
[1767660482665,0.98462763,3201.9,3201.1,6.2478523]
[1767660483049,0.98367816,3201.9,3200.9,6.24824268]
[1767660483356,0.98367816,3201.9,3201.0,1.19027072]
[1767660483759,0.818,3202.0,3201.1,0.97713031]
[1767660484944,0.818,3202.0,3201.4,0.97713031]
[1767660485246,0.001,3202.1,3201.5,1.00148879]
[1767660485452,0.819,3202.1,3201.5,0.97713031]
[1767660487150,0.819,3202.1,3201.6,3.12343828]
[1767660487564,0.001,3202.1,3201.6,7.94642009]
[1767660487768,0.001,3202.1,3201.7,0.97713031]
[1767660489340,0.001,3202.1,3201.8,3.12324317]
[1767660489538,0.001,3202.1,3201.8,3.12524317]
[1767660489961,0.001,3202.1,3201.8,7.22561665]
[1767660490158,0.98462763,3202.2,3201.8,7.04328933]